[Event "*** SCC Grand Prix: Titled Tuesday Blitz"]
[Site "Chess.com"]
[Date "2020.09.29"]
[Round "10"]
[White "josorio78"]
[Black "pastouche06"]
[Result "1-0"]
[WhiteElo "2335"]
[BlackElo "2453"]
[TimeControl "180+1"]
[EndTime "11:52:28 PDT"]
[Termination "josorio78 won by resignation"]

1. Nf3 {[%clk 0:02:59.5]} 1... d5 {[%clk 0:02:59.7]} 2. g3 {[%clk 0:02:59.4]}
2... Nf6 {[%clk 0:02:58]} 3. Bg2 {[%clk 0:02:59.7]} 3... c5 {[%clk 0:02:58.8]}
4. O-O {[%clk 0:03:00]} 4... Nc6 {[%clk 0:02:59.4]} 5. d3 {[%clk 0:03:00.5]}
5... g6 {[%clk 0:02:57.5]} 6. Nbd2 {[%clk 0:03:00.7]} 6... Bg7 {[%clk
0:02:58.1]} 7. e4 {[%clk 0:03:01.2]} 7... e6 {[%clk 0:02:58.7]} 8. Re1 {[%clk
0:03:00.1]} 8... O-O {[%clk 0:02:58.4]} 9. exd5 {[%clk 0:03:00.5]} 9... Nxd5
{[%clk 0:02:58.3]} 10. a4 {[%clk 0:02:59.8]} 10... b6 {[%clk 0:02:56.1]} 11. Nc4
{[%clk 0:02:59.5]} 11... Bb7 {[%clk 0:02:55]} 12. c3 {[%clk 0:02:59.6]} 12...
Re8 {[%clk 0:02:51.2]} 13. a5 {[%clk 0:02:50.7]} 13... b5 {[%clk 0:02:44.3]} 14.
a6 {[%clk 0:02:50.7]} 14... Bc8 {[%clk 0:02:44.8]} 15. Ne3 {[%clk 0:02:50.8]}
15... Qb6 {[%clk 0:02:41.1]} 16. Nxd5 {[%clk 0:02:46.3]} 16... Qd8 {[%clk
0:02:24.6]} 17. Ne3 {[%clk 0:02:43.7]} 17... Bd7 {[%clk 0:02:25]} 18. Nf1 {[%clk
0:02:43.1]} 18... Qb6 {[%clk 0:02:23.6]} 19. Be3 {[%clk 0:02:42.2]} 19... e5
{[%clk 0:02:21.8]} 20. Qb3 {[%clk 0:02:37.8]} 20... Be6 {[%clk 0:02:21]} 21. Qa3
{[%clk 0:02:37.7]} 21... b4 {[%clk 0:02:19.9]} 22. Qa4 {[%clk 0:02:34.7]} 22...
Rac8 {[%clk 0:02:18.7]} 23. Ng5 {[%clk 0:02:33.7]} 23... Bd7 {[%clk 0:02:17.8]}
24. Qb3 {[%clk 0:02:26.7]} 24... Re7 {[%clk 0:02:13.4]} 25. Bd5 {[%clk
0:02:26.5]} 25... Be8 {[%clk 0:02:12.9]} 26. Ne4 {[%clk 0:02:19.8]} 26... Nd8
{[%clk 0:02:03.6]} 27. cxb4 {[%clk 0:02:14.3]} 27... Qxb4 {[%clk 0:02:03.4]} 28.
Qxb4 {[%clk 0:02:14.5]} 28... cxb4 {[%clk 0:02:04.3]} 29. Bc4 {[%clk 0:02:10.6]}
29... Nc6 {[%clk 0:02:01.8]} 30. Nd6 {[%clk 0:02:09.1]} 30... Rd8 {[%clk
0:02:00.6]} 31. Nxe8 {[%clk 0:02:09.2]} 31... Rexe8 {[%clk 0:02:00.4]} 32. Bb5
{[%clk 0:02:09.6]} 32... Re6 {[%clk 0:02:00.6]} 33. Bxc6 {[%clk 0:02:09.8]}
33... Rxc6 {[%clk 0:02:00.6]} 34. Rec1 {[%clk 0:02:09.7]} 1-0

[Event "*** SCC Grand Prix: Titled Tuesday Blitz"]
[Site "Chess.com"]
[Date "2020.09.29"]
[Round "10"]
[White "TheMagnet"]
[Black "alexgo05"]
[Result "1-0"]
[WhiteElo "2580"]
[BlackElo "2429"]
[TimeControl "180+1"]
[EndTime "11:52:37 PDT"]
[Termination "TheMagnet won by resignation"]

1. d4 {[%clk 0:03:00.9]} 1... Nf6 {[%clk 0:03:00.1]} 2. c4 {[%clk 0:03:01.2]}
2... g6 {[%clk 0:03:00.5]} 3. Nc3 {[%clk 0:03:01.6]} 3... Bg7 {[%clk 0:03:01.1]}
4. e4 {[%clk 0:03:02]} 4... d6 {[%clk 0:03:01.7]} 5. f4 {[%clk 0:03:02.6]} 5...
O-O {[%clk 0:03:01.9]} 6. Nf3 {[%clk 0:03:03.3]} 6... c5 {[%clk 0:03:02.5]} 7.
d5 {[%clk 0:03:04]} 7... e6 {[%clk 0:03:02.7]} 8. Be2 {[%clk 0:03:04.4]} 8...
exd5 {[%clk 0:03:02.7]} 9. cxd5 {[%clk 0:03:05.3]} 9... b5 {[%clk 0:03:03.3]}
10. e5 {[%clk 0:03:05.4]} 10... dxe5 {[%clk 0:03:03.2]} 11. fxe5 {[%clk
0:03:06.3]} 11... Ng4 {[%clk 0:03:03.8]} 12. Bg5 {[%clk 0:03:06.8]} 12... Qb6
{[%clk 0:02:55.8]} 13. O-O {[%clk 0:03:06.3]} 13... Bb7 {[%clk 0:02:31.3]} 14.
Be7 {[%clk 0:02:42.6]} 14... Re8 {[%clk 0:02:29.1]} 15. d6 {[%clk 0:02:41.1]}
15... c4+ {[%clk 0:02:26.4]} 16. Kh1 {[%clk 0:02:40.6]} 16... Nd7 {[%clk
0:02:17.8]} 17. Nd5 {[%clk 0:02:08.2]} 17... Nf2+ {[%clk 0:02:17.9]} 18. Rxf2
{[%clk 0:02:07.2]} 18... Qxf2 {[%clk 0:02:18.8]} 19. Nc7 {[%clk 0:02:02.2]}
19... Nxe5 {[%clk 0:01:39.5]} 20. Nxe8 {[%clk 0:01:57.6]} 20... Rd8 {[%clk
0:00:55.5]} 21. Bxd8 {[%clk 0:01:51]} 1-0

[Event "*** SCC Grand Prix: Titled Tuesday Blitz"]
[Site "Chess.com"]
[Date "2020.09.29"]
[Round "10"]
[White "carlsen1001"]
[Black "GmSergioBarrientos"]
[Result "0-1"]
[WhiteElo "2434"]
[BlackElo "2682"]
[TimeControl "180+1"]
[EndTime "11:52:49 PDT"]
[Termination "GmSergioBarrientos won by resignation"]

1. e4 {[%clk 0:03:00.9]} 1... c5 {[%clk 0:02:59.6]} 2. Nf3 {[%clk 0:03:01.1]}
2... d6 {[%clk 0:02:59.8]} 3. d4 {[%clk 0:03:00.6]} 3... Nf6 {[%clk 0:03:00.1]}
4. Nc3 {[%clk 0:02:59.5]} 4... cxd4 {[%clk 0:03:00.2]} 5. Nxd4 {[%clk
0:03:00.3]} 5... a6 {[%clk 0:03:01.1]} 6. Bg5 {[%clk 0:02:59.9]} 6... e6 {[%clk
0:02:59.8]} 7. f4 {[%clk 0:02:59.5]} 7... h6 {[%clk 0:02:58.8]} 8. Bh4 {[%clk
0:02:59.2]} 8... Be7 {[%clk 0:02:55.8]} 9. Qf3 {[%clk 0:02:58.2]} 9... Qc7
{[%clk 0:02:55.8]} 10. O-O-O {[%clk 0:02:58.2]} 10... Nbd7 {[%clk 0:02:55.9]}
11. Bd3 {[%clk 0:02:58]} 11... b5 {[%clk 0:02:54.7]} 12. Rhe1 {[%clk 0:02:57.8]}
12... Bb7 {[%clk 0:02:53.7]} 13. Qg3 {[%clk 0:02:57.8]} 13... Rg8 {[%clk
0:02:51.6]} 14. Kb1 {[%clk 0:02:37]} 14... g5 {[%clk 0:02:42.9]} 15. fxg5 {[%clk
0:02:27.3]} 15... hxg5 {[%clk 0:02:43.1]} 16. Bxg5 {[%clk 0:02:27.9]} 16... Qc5
{[%clk 0:02:39.9]} 17. Nf3 {[%clk 0:02:18.4]} 17... Nh5 {[%clk 0:02:38.9]} 18.
Be3 {[%clk 0:02:17]} 18... Nxg3 {[%clk 0:02:33.5]} 19. Bxc5 {[%clk 0:02:16.4]}
19... Nxc5 {[%clk 0:02:32.8]} 20. hxg3 {[%clk 0:02:16.9]} 20... Rxg3 {[%clk
0:02:33.5]} 21. Bf1 {[%clk 0:02:14.3]} 21... O-O-O {[%clk 0:02:25.5]} 22. a3
{[%clk 0:02:14.1]} 22... Rdg8 {[%clk 0:02:24.1]} 23. Ne2 {[%clk 0:02:12.6]}
23... R3g4 {[%clk 0:02:23]} 24. e5 {[%clk 0:02:11.6]} 24... Kc7 {[%clk
0:02:14.2]} 25. exd6+ {[%clk 0:02:10.6]} 25... Bxd6 {[%clk 0:02:15.1]} 26. Ned4
{[%clk 0:02:09.3]} 26... Bd5 {[%clk 0:02:09.4]} 27. Kc1 {[%clk 0:01:46.5]} 27...
Bg3 {[%clk 0:02:09.2]} 28. Re2 {[%clk 0:01:39.8]} 28... Bc4 {[%clk 0:02:09.2]}
29. Re5 {[%clk 0:01:23.3]} 29... Bxe5 {[%clk 0:01:56.6]} 30. Nxe5 {[%clk
0:01:24]} 30... Rxd4 {[%clk 0:01:56.7]} 31. Rxd4 {[%clk 0:01:20.2]} 31... Bxf1
{[%clk 0:01:56.7]} 32. Rf4 {[%clk 0:01:19.2]} 32... Bxg2 {[%clk 0:01:52.8]} 33.
Rxf7+ {[%clk 0:01:19.8]} 33... Kd6 {[%clk 0:01:51.7]} 0-1

[Event "*** SCC Grand Prix: Titled Tuesday Blitz"]
[Site "Chess.com"]
[Date "2020.09.29"]
[Round "10"]
[White "FMalexhdez"]
[Black "AniJak"]
[Result "0-1"]
[WhiteElo "2242"]
[BlackElo "2382"]
[TimeControl "180+1"]
[EndTime "11:52:53 PDT"]
[Termination "AniJak won by resignation"]

1. e4 {[%clk 0:03:00.9]} 1... c6 {[%clk 0:02:59.6]} 2. d4 {[%clk 0:02:59.8]}
2... d5 {[%clk 0:02:59.5]} 3. exd5 {[%clk 0:03:00.5]} 3... cxd5 {[%clk
0:02:59.6]} 4. Bd3 {[%clk 0:03:01.3]} 4... Nc6 {[%clk 0:02:59.3]} 5. c3 {[%clk
0:03:01.8]} 5... Qc7 {[%clk 0:02:59.2]} 6. Ne2 {[%clk 0:03:00.1]} 6... Bg4
{[%clk 0:02:56.8]} 7. f3 {[%clk 0:02:59.5]} 7... Bh5 {[%clk 0:02:56]} 8. Bf4
{[%clk 0:03:00]} 8... Qc8 {[%clk 0:02:54.9]} 9. Nd2 {[%clk 0:02:58.3]} 9... e6
{[%clk 0:02:51.8]} 10. O-O {[%clk 0:02:50.7]} 10... Nge7 {[%clk 0:02:47]} 11.
Bd6 {[%clk 0:02:36.2]} 11... Ng6 {[%clk 0:02:42.5]} 12. Bxf8 {[%clk 0:02:35.3]}
12... Nxf8 {[%clk 0:02:42.2]} 13. Nf4 {[%clk 0:02:34]} 13... Bg6 {[%clk
0:02:42]} 14. Nxg6 {[%clk 0:02:30.8]} 14... hxg6 {[%clk 0:02:42.9]} 15. f4
{[%clk 0:02:30.6]} 15... Nd7 {[%clk 0:02:42.5]} 16. Nf3 {[%clk 0:02:29.6]} 16...
Qc7 {[%clk 0:02:37.7]} 17. Qd2 {[%clk 0:02:28.5]} 17... O-O-O {[%clk 0:02:32.5]}
18. b4 {[%clk 0:02:27.4]} 18... Kb8 {[%clk 0:02:21.9]} 19. a4 {[%clk 0:02:27]}
19... Rc8 {[%clk 0:02:20.2]} 20. a5 {[%clk 0:02:25.5]} 20... Ne7 {[%clk
0:02:19.9]} 21. Rfc1 {[%clk 0:02:24]} 21... Nf5 {[%clk 0:02:14.4]} 22. b5 {[%clk
0:02:17]} 22... Qd6 {[%clk 0:02:14.5]} 23. c4 {[%clk 0:01:44]} 23... dxc4 {[%clk
0:02:11.4]} 24. Bxc4 {[%clk 0:01:37.4]} 24... Nf6 {[%clk 0:02:07.4]} 25. b6
{[%clk 0:01:13]} 25... a6 {[%clk 0:02:06.7]} 26. Qd3 {[%clk 0:00:59.9]} 26...
Qxf4 {[%clk 0:01:58.3]} 27. Bxa6 {[%clk 0:00:59.5]} 27... Rxc1+ {[%clk
0:01:57.3]} 0-1

[Event "*** SCC Grand Prix: Titled Tuesday Blitz"]
[Site "Chess.com"]
[Date "2020.09.29"]
[Round "10"]
[White "stanyga"]
[Black "ajgreen"]
[Result "1-0"]
[WhiteElo "2625"]
[BlackElo "2397"]
[TimeControl "180+1"]
[EndTime "11:53:29 PDT"]
[Termination "stanyga won by resignation"]

1. d4 {[%clk 0:03:00.6]} 1... f5 {[%clk 0:02:59.9]} 2. g3 {[%clk 0:02:57.9]}
2... Nf6 {[%clk 0:02:59]} 3. Bg2 {[%clk 0:02:58.2]} 3... d6 {[%clk 0:02:57.9]}
4. c4 {[%clk 0:02:57.8]} 4... g6 {[%clk 0:02:57.3]} 5. Nc3 {[%clk 0:02:58.1]}
5... Bg7 {[%clk 0:02:57.4]} 6. Nf3 {[%clk 0:02:58.5]} 6... O-O {[%clk
0:02:57.3]} 7. O-O {[%clk 0:02:59]} 7... Qe8 {[%clk 0:02:57]} 8. Rb1 {[%clk
0:02:50.3]} 8... a5 {[%clk 0:02:52.4]} 9. a3 {[%clk 0:02:37.3]} 9... c6 {[%clk
0:02:27.8]} 10. b4 {[%clk 0:02:31.2]} 10... axb4 {[%clk 0:02:26.9]} 11. axb4
{[%clk 0:02:32]} 11... e5 {[%clk 0:02:24.2]} 12. d5 {[%clk 0:02:32]} 12... Na6
{[%clk 0:02:13.2]} 13. dxc6 {[%clk 0:02:28.4]} 13... e4 {[%clk 0:02:06]} 14.
cxb7 {[%clk 0:02:08.9]} 14... Bxb7 {[%clk 0:02:05.3]} 15. Nd4 {[%clk 0:02:09.5]}
15... Ng4 {[%clk 0:01:54.7]} 16. Ncb5 {[%clk 0:02:03.2]} 16... Qe7 {[%clk
0:01:47.1]} 17. Bf4 {[%clk 0:01:46.6]} 17... Ne5 {[%clk 0:01:45.8]} 18. Qb3
{[%clk 0:01:46.7]} 18... Kh8 {[%clk 0:01:34.9]} 19. Rfd1 {[%clk 0:01:40.1]}
19... Rac8 {[%clk 0:01:22.9]} 20. Rbc1 {[%clk 0:01:39]} 20... g5 {[%clk
0:01:17.7]} 21. Bxg5 {[%clk 0:01:32]} 21... Qxg5 {[%clk 0:01:16.1]} 22. Nxd6
{[%clk 0:01:31.6]} 22... Qe7 {[%clk 0:00:58.6]} 23. N4xf5 {[%clk 0:01:27.7]}
23... Rxf5 {[%clk 0:00:47.2]} 24. Nxf5 {[%clk 0:01:26.9]} 24... Qf7 {[%clk
0:00:45.7]} 25. Nd6 {[%clk 0:01:24.6]} 1-0

[Event "*** SCC Grand Prix: Titled Tuesday Blitz"]
[Site "Chess.com"]
[Date "2020.09.29"]
[Round "10"]
[White "rasmussvane"]
[Black "Radzio1987"]
[Result "1-0"]
[WhiteElo "2905"]
[BlackElo "2830"]
[TimeControl "180+1"]
[EndTime "11:53:30 PDT"]
[Termination "rasmussvane won by resignation"]

1. Nf3 {[%clk 0:03:00.9]} 1... Nf6 {[%clk 0:02:59.7]} 2. g3 {[%clk 0:03:01.3]}
2... b6 {[%clk 0:02:59.8]} 3. Bg2 {[%clk 0:03:01.4]} 3... Bb7 {[%clk 0:03:00.4]}
4. O-O {[%clk 0:03:01.8]} 4... g6 {[%clk 0:03:00.9]} 5. d4 {[%clk 0:03:01.8]}
5... Bg7 {[%clk 0:03:01.1]} 6. c4 {[%clk 0:03:02.1]} 6... O-O {[%clk 0:03:01.1]}
7. Re1 {[%clk 0:03:02.2]} 7... c5 {[%clk 0:02:53.7]} 8. d5 {[%clk 0:03:02]} 8...
b5 {[%clk 0:02:54.1]} 9. e4 {[%clk 0:03:02.3]} 9... d6 {[%clk 0:02:54.2]} 10. e5
{[%clk 0:03:01.1]} 10... Nfd7 {[%clk 0:02:07.6]} 11. e6 {[%clk 0:02:53.6]} 11...
fxe6 {[%clk 0:02:07.1]} 12. Ng5 {[%clk 0:02:53.7]} 12... Bd4 {[%clk 0:01:46.2]}
13. Nxe6 {[%clk 0:02:48.5]} 13... Bxf2+ {[%clk 0:01:46.1]} 14. Kh1 {[%clk
0:02:48.8]} 14... Qa5 {[%clk 0:01:46.2]} 15. Bd2 {[%clk 0:02:38]} 15... Qa4
{[%clk 0:01:20.7]} 16. b3 {[%clk 0:02:33.8]} 16... Qa6 {[%clk 0:01:20.8]} 17.
Nxf8 {[%clk 0:02:13.2]} 17... Bxe1 {[%clk 0:01:20.7]} 18. Qxe1 {[%clk
0:02:14.1]} 18... Kxf8 {[%clk 0:01:14.8]} 19. Nc3 {[%clk 0:01:35.4]} 19... Qb6
{[%clk 0:01:07.1]} 20. Qe6 {[%clk 0:01:28.2]} 20... Nf6 {[%clk 0:00:46.4]} 21.
Rf1 {[%clk 0:01:24.3]} 1-0

[Event "*** SCC Grand Prix: Titled Tuesday Blitz"]
[Site "Chess.com"]
[Date "2020.09.29"]
[Round "10"]
[White "Martins-BR"]
[Black "rududuyk"]
[Result "1-0"]
[WhiteElo "2299"]
[BlackElo "2151"]
[TimeControl "180+1"]
[EndTime "11:53:42 PDT"]
[Termination "Martins-BR won by resignation"]

1. e4 {[%clk 0:03:00.9]} 1... e6 {[%clk 0:03:00]} 2. d4 {[%clk 0:02:59.9]} 2...
d5 {[%clk 0:03:00.5]} 3. Nc3 {[%clk 0:02:59.8]} 3... Bb4 {[%clk 0:02:59.9]} 4.
e5 {[%clk 0:02:59.1]} 4... c5 {[%clk 0:03:00.1]} 5. Bd2 {[%clk 0:02:59.4]} 5...
cxd4 {[%clk 0:02:36.6]} 6. Nb5 {[%clk 0:02:57.8]} 6... Bc5 {[%clk 0:02:31]} 7.
b4 {[%clk 0:02:56.6]} 7... Be7 {[%clk 0:02:30.1]} 8. f4 {[%clk 0:02:53]} 8...
Nc6 {[%clk 0:02:26]} 9. Nf3 {[%clk 0:02:51.6]} 9... Qb6 {[%clk 0:02:24.7]} 10.
a4 {[%clk 0:02:43.6]} 10... Nxb4 {[%clk 0:02:05.8]} 11. Nfxd4 {[%clk 0:02:32.4]}
11... a6 {[%clk 0:02:02.9]} 12. Bxb4 {[%clk 0:02:08]} 12... Bxb4+ {[%clk
0:01:58.1]} 13. c3 {[%clk 0:02:08.1]} 13... axb5 {[%clk 0:01:48.6]} 14. Bxb5+
{[%clk 0:02:06]} 14... Bd7 {[%clk 0:01:44.4]} 15. Bxd7+ {[%clk 0:01:53.3]} 15...
Kxd7 {[%clk 0:01:45.3]} 16. cxb4 {[%clk 0:01:52.7]} 16... Qxb4+ {[%clk
0:01:43.9]} 17. Kf2 {[%clk 0:01:43.9]} 17... Qb2+ {[%clk 0:01:28.3]} 18. Kg3
{[%clk 0:01:34.7]} 18... Ne7 {[%clk 0:01:19.1]} 19. Kh3 {[%clk 0:01:10.4]} 19...
Rhc8 {[%clk 0:01:15.4]} 20. Rb1 {[%clk 0:01:03]} 20... Qc3+ {[%clk 0:01:08.6]}
21. g3 {[%clk 0:01:01.4]} 21... Rc7 {[%clk 0:00:53]} 22. Nb5 {[%clk 0:01:00.4]}
22... Rc6 {[%clk 0:00:50.2]} 23. Nxc3 {[%clk 0:00:59.4]} 1-0

[Event "*** SCC Grand Prix: Titled Tuesday Blitz"]
[Site "Chess.com"]
[Date "2020.09.29"]
[Round "10"]
[White "Kislov_Oleg"]
[Black "shriyanasmallya"]
[Result "1-0"]
[WhiteElo "2317"]
[BlackElo "1627"]
[TimeControl "180+1"]
[EndTime "11:53:45 PDT"]
[Termination "Kislov_Oleg won by checkmate"]

1. e4 {[%clk 0:02:53]} 1... e5 {[%clk 0:02:59.2]} 2. Nf3 {[%clk 0:02:52.6]} 2...
Nc6 {[%clk 0:02:59.3]} 3. d4 {[%clk 0:02:52.3]} 3... exd4 {[%clk 0:02:58.8]} 4.
Nxd4 {[%clk 0:02:53.2]} 4... Bc5 {[%clk 0:02:58.2]} 5. Be3 {[%clk 0:02:52.8]}
5... Qf6 {[%clk 0:02:58]} 6. c3 {[%clk 0:02:52.9]} 6... Nge7 {[%clk 0:02:56.4]}
7. Bc4 {[%clk 0:02:52]} 7... O-O {[%clk 0:02:55.7]} 8. O-O {[%clk 0:02:51.6]}
8... b6 {[%clk 0:02:56]} 9. Nxc6 {[%clk 0:02:42.2]} 9... Qxc6 {[%clk 0:02:53.2]}
10. Bxc5 {[%clk 0:02:35.8]} 10... Qxc5 {[%clk 0:02:51.7]} 11. Nd2 {[%clk
0:02:35.4]} 11... Bb7 {[%clk 0:02:48.2]} 12. b4 {[%clk 0:02:13.7]} 12... Qg5
{[%clk 0:02:42.8]} 13. f4 {[%clk 0:02:11]} 13... Qf6 {[%clk 0:02:35.8]} 14. e5
{[%clk 0:02:06.8]} 14... Qg6 {[%clk 0:02:35]} 15. Nf3 {[%clk 0:01:52.6]} 15...
d5 {[%clk 0:02:30.1]} 16. exd6 {[%clk 0:01:48.8]} 16... cxd6 {[%clk 0:02:29.8]}
17. Qd2 {[%clk 0:01:41.6]} 17... Rac8 {[%clk 0:02:26.8]} 18. Bb3 {[%clk
0:01:34.9]} 18... Qf6 {[%clk 0:02:18.3]} 19. Nd4 {[%clk 0:01:33.5]} 19... Qg6
{[%clk 0:02:11.9]} 20. Rae1 {[%clk 0:01:29.5]} 20... Rxc3 {[%clk 0:02:02.9]} 21.
Rxe7 {[%clk 0:01:22.2]} 21... Rd3 {[%clk 0:01:59]} 22. Qf2 {[%clk 0:01:19.6]}
22... Rxd4 {[%clk 0:01:45.9]} 23. Rxb7 {[%clk 0:01:17.4]} 23... Rxb4 {[%clk
0:01:45.3]} 24. Qe1 {[%clk 0:01:00.9]} 24... Re4 {[%clk 0:01:34.1]} 25. Qc3
{[%clk 0:00:56.1]} 25... Re2 {[%clk 0:01:31.2]} 26. Qf3 {[%clk 0:00:49.7]} 26...
Rd2 {[%clk 0:01:19.1]} 27. Rxf7 {[%clk 0:00:46.1]} 27... Rxf7 {[%clk 0:01:18]}
28. Qa8# {[%clk 0:00:44.2]} 1-0

[Event "*** SCC Grand Prix: Titled Tuesday Blitz"]
[Site "Chess.com"]
[Date "2020.09.29"]
[Round "10"]
[White "floplover"]
[Black "boasovietica"]
[Result "0-1"]
[WhiteElo "2301"]
[BlackElo "2420"]
[TimeControl "180+1"]
[EndTime "11:53:46 PDT"]
[Termination "boasovietica won by resignation"]

1. d4 {[%clk 0:02:58]} 1... Nf6 {[%clk 0:02:59.7]} 2. c4 {[%clk 0:02:56.1]} 2...
c5 {[%clk 0:02:59.5]} 3. d5 {[%clk 0:02:56.1]} 3... b5 {[%clk 0:02:59]} 4. cxb5
{[%clk 0:02:57]} 4... d6 {[%clk 0:02:57.5]} 5. Nc3 {[%clk 0:02:56.1]} 5... g6
{[%clk 0:02:58]} 6. e4 {[%clk 0:02:55.6]} 6... Bg7 {[%clk 0:02:58.2]} 7. Bc4
{[%clk 0:02:47.6]} 7... a6 {[%clk 0:02:57.3]} 8. Nge2 {[%clk 0:02:44.2]} 8...
O-O {[%clk 0:02:55.6]} 9. Qc2 {[%clk 0:02:41.7]} 9... axb5 {[%clk 0:02:51.8]}
10. Nxb5 {[%clk 0:02:41.3]} 10... Ba6 {[%clk 0:02:48.4]} 11. O-O {[%clk
0:02:39.1]} 11... Qb6 {[%clk 0:02:45.1]} 12. Nec3 {[%clk 0:02:37.4]} 12... Nbd7
{[%clk 0:02:33.2]} 13. f4 {[%clk 0:02:29.5]} 13... Ne8 {[%clk 0:02:24.2]} 14.
Be3 {[%clk 0:02:28.2]} 14... Nc7 {[%clk 0:02:24.1]} 15. a4 {[%clk 0:02:27.7]}
15... Bb7 {[%clk 0:02:08]} 16. Rae1 {[%clk 0:02:19.9]} 16... Na6 {[%clk
0:01:54.8]} 17. Rf3 {[%clk 0:01:51.4]} 17... Nb4 {[%clk 0:01:52.9]} 18. Qb3
{[%clk 0:01:50.4]} 18... Qd8 {[%clk 0:01:47.5]} 19. Rh3 {[%clk 0:01:45.9]} 19...
Nb6 {[%clk 0:01:45.7]} 20. f5 {[%clk 0:01:37]} 20... Nxc4 {[%clk 0:01:45.3]} 21.
Qxc4 {[%clk 0:01:37]} 21... Nc2 {[%clk 0:01:44.3]} 22. Re2 {[%clk 0:01:26.7]}
22... Nxe3 {[%clk 0:01:44.1]} 23. Rexe3 {[%clk 0:01:27.6]} 23... Qa5 {[%clk
0:01:31.1]} 24. b3 {[%clk 0:01:12.1]} 24... Ba6 {[%clk 0:01:24.7]} 25. Reg3
{[%clk 0:01:07.9]} 25... Rfb8 {[%clk 0:01:15.9]} 26. Rh4 {[%clk 0:01:03.6]}
26... Bxb5 {[%clk 0:01:09]} 27. Nxb5 {[%clk 0:01:03.8]} 27... Rxb5 {[%clk
0:01:04.3]} 28. Qxb5 {[%clk 0:01:00.5]} 28... Qe1+ {[%clk 0:01:03.1]} 0-1

[Event "*** SCC Grand Prix: Titled Tuesday Blitz"]
[Site "Chess.com"]
[Date "2020.09.29"]
[Round "10"]
[White "almaguerjm"]
[Black "BikingBrian"]
[Result "1-0"]
[WhiteElo "2317"]
[BlackElo "2197"]
[TimeControl "180+1"]
[EndTime "11:53:51 PDT"]
[Termination "almaguerjm won by resignation"]

1. e4 {[%clk 0:02:51.1]} 1... c5 {[%clk 0:02:59.6]} 2. Nf3 {[%clk 0:02:42.9]}
2... g6 {[%clk 0:02:59.6]} 3. h4 {[%clk 0:02:36.9]} 3... h5 {[%clk 0:02:57.6]}
4. Bc4 {[%clk 0:02:31.9]} 4... Bg7 {[%clk 0:02:55.4]} 5. c3 {[%clk 0:02:28.6]}
5... e6 {[%clk 0:02:54.4]} 6. Qe2 {[%clk 0:02:25.8]} 6... Ne7 {[%clk 0:02:53.6]}
7. d3 {[%clk 0:02:16.2]} 7... d5 {[%clk 0:02:51.9]} 8. Bb3 {[%clk 0:02:10.7]}
8... Nbc6 {[%clk 0:02:41.4]} 9. Bg5 {[%clk 0:02:01.4]} 9... f6 {[%clk
0:02:35.9]} 10. Be3 {[%clk 0:01:58]} 10... b6 {[%clk 0:02:31.2]} 11. Nbd2 {[%clk
0:01:54.6]} 11... Bb7 {[%clk 0:02:31.2]} 12. O-O-O {[%clk 0:01:52.9]} 12... O-O
{[%clk 0:02:30.6]} 13. Rdg1 {[%clk 0:01:50.2]} 13... Na5 {[%clk 0:02:21.8]} 14.
Bc2 {[%clk 0:01:44.8]} 14... f5 {[%clk 0:02:00.5]} 15. Ng5 {[%clk 0:01:34.9]}
15... Qd7 {[%clk 0:01:55.1]} 16. exf5 {[%clk 0:01:33.2]} 16... exf5 {[%clk
0:01:39]} 17. Bf4 {[%clk 0:01:30]} 17... Rae8 {[%clk 0:01:34.4]} 18. Qe6+ {[%clk
0:01:27.3]} 18... Qxe6 {[%clk 0:01:31.3]} 19. Nxe6 {[%clk 0:01:28.2]} 19... Rf6
{[%clk 0:01:27.7]} 20. Nxg7 {[%clk 0:01:27.1]} 20... Kxg7 {[%clk 0:01:28.6]} 21.
Be5 {[%clk 0:01:27.4]} 21... Nac6 {[%clk 0:01:17.3]} 22. Bxf6+ {[%clk
0:01:25.4]} 22... Kxf6 {[%clk 0:01:18.2]} 23. Nf3 {[%clk 0:01:16.2]} 23... Ne5
{[%clk 0:01:13.3]} 24. Nxe5 {[%clk 0:01:14]} 24... Kxe5 {[%clk 0:01:13.2]} 25.
Re1+ {[%clk 0:01:14.7]} 25... Kf6 {[%clk 0:01:13.5]} 26. Re2 {[%clk 0:01:08.6]}
26... d4 {[%clk 0:01:09]} 27. Rhe1 {[%clk 0:01:08]} 27... Bxg2 {[%clk
0:01:03.8]} 28. Ba4 {[%clk 0:01:08.1]} 28... Bc6 {[%clk 0:00:45.7]} 29. Re6+
{[%clk 0:01:04.6]} 29... Kf7 {[%clk 0:00:44.9]} 30. Bxc6 {[%clk 0:01:04.6]} 1-0

[Event "*** SCC Grand Prix: Titled Tuesday Blitz"]
[Site "Chess.com"]
[Date "2020.09.29"]
[Round "10"]
[White "Kaslask"]
[Black "moventog"]
[Result "0-1"]
[WhiteElo "2321"]
[BlackElo "2244"]
[TimeControl "180+1"]
[EndTime "11:54:00 PDT"]
[Termination "moventog won by resignation"]

1. c4 {[%clk 0:02:59.4]} 1... e6 {[%clk 0:02:59]} 2. Nc3 {[%clk 0:02:58.4]} 2...
d5 {[%clk 0:02:59.5]} 3. d4 {[%clk 0:02:58.5]} 3... c5 {[%clk 0:02:59.1]} 4.
cxd5 {[%clk 0:02:57.8]} 4... exd5 {[%clk 0:03:00]} 5. dxc5 {[%clk 0:02:57.8]}
5... d4 {[%clk 0:02:59.6]} 6. Na4 {[%clk 0:02:57.7]} 6... b5 {[%clk 0:02:54.1]}
7. cxb6 {[%clk 0:02:56.1]} 7... axb6 {[%clk 0:02:54.4]} 8. b3 {[%clk 0:02:52]}
8... b5 {[%clk 0:02:51.5]} 9. Nb2 {[%clk 0:02:46.6]} 9... Nc6 {[%clk 0:02:48.9]}
10. e3 {[%clk 0:02:37.9]} 10... Bb4+ {[%clk 0:02:29.7]} 11. Bd2 {[%clk 0:02:37]}
11... Ba3 {[%clk 0:02:13.9]} 12. Bxb5 {[%clk 0:02:29.8]} 12... Bxb2 {[%clk
0:01:50.5]} 13. Bxc6+ {[%clk 0:02:27.4]} 13... Bd7 {[%clk 0:01:50.9]} 14. Bxa8
{[%clk 0:02:22.7]} 14... Bxa1 {[%clk 0:01:34.6]} 15. Qxa1 {[%clk 0:02:20.1]}
15... Qxa8 {[%clk 0:01:33.6]} 16. Nf3 {[%clk 0:02:12.1]} 16... f6 {[%clk
0:01:31.2]} 17. Qxd4 {[%clk 0:01:58.8]} 17... Qxa2 {[%clk 0:01:29.7]} 18. O-O
{[%clk 0:01:58.1]} 18... Ne7 {[%clk 0:01:29.8]} 19. Ra1 {[%clk 0:01:55.4]} 19...
Qxb3 {[%clk 0:01:27.8]} 20. Ra8+ {[%clk 0:01:53.8]} 20... Nc8 {[%clk 0:01:27.2]}
21. Qc5 {[%clk 0:01:45.5]} 21... Kf7 {[%clk 0:01:06.8]} 22. h3 {[%clk 0:01:44]}
22... Re8 {[%clk 0:00:57.7]} 23. Bb4 {[%clk 0:01:41.7]} 23... Qb1+ {[%clk
0:00:50.3]} 24. Kh2 {[%clk 0:01:40.5]} 24... Qe4 {[%clk 0:00:51.2]} 25. Nd4
{[%clk 0:01:30.9]} 25... Qxa8 {[%clk 0:00:48.6]} 26. Qc7 {[%clk 0:01:21.2]}
26... Qd5 {[%clk 0:00:44.2]} 27. Nf3 {[%clk 0:01:12.3]} 27... Kg8 {[%clk
0:00:39.1]} 28. Nd4 {[%clk 0:01:07.6]} 28... Qe5+ {[%clk 0:00:38.6]} 29. Qxe5
{[%clk 0:01:04.1]} 29... fxe5 {[%clk 0:00:39.5]} 0-1